Cogmind - Beta 13 @@@ ROGUE MODE // 2024.05.10 @ 22:43:20 Player: A Moose Result: Destroyed by B-86 Titan with Hardcell Cannon Performance ------------- Evolutions (6) 3000 Regions Visited (18) 3600 Robots Destroyed (156) 780 Value Destroyed (6807) 6807 Prototype IDs (46) 920 Alien Tech Used (0) 0 Bonus (4335) 4335 TOTAL SCORE: 19442 Bonus ------- High Alert Combat Kills 762 Follower Combat Kills 931 Entered Garrisons 600 Used RIF Installer 1000 Entered DSFs 500 Aligned with FarCom 300 Met Data Miner 300 Friendly Fire -58 Cogmind --------- Core Integrity 0/1150 Matter 290/300 Energy 100/100 System Corruption 1% Temperature Cool (0) Movement Core (150) Ox2 Location -4/Garrison Parts ------- > --- POWER (2) -------- (None) > --- PROPULSION (4) --- (None) > --- UTILITY (10) ----- Advanced Visual Processing Unit Graphene Brace > --- WEAPON (3) ------- Enhanced Quantum Rifle > --- INVENTORY (5) ---- Advanced Matter Compressor (400) Signal Generator Peak State ------------ > --- POWER ------------ Antimatter Reactor Antimatter Reactor > --- PROPULSION ------- Centrium Wheel Centrium Wheel Centrium Wheel Centrium Wheel > --- UTILITY ---------- Improved Heat Sink Advanced Cooling System Advanced Visual Processing Unit Advanced Signal Interpreter Improved Target Analyzer Makeshift Transmission Jammer Layered Heavy Armor Plating Relay Coupler [NC] > --- WEAPON ----------- KE Penetrator KE Penetrator KE Penetrator > --- INVENTORY -------- Advanced Matter Compressor Magnetic Acceleration Cannon Remote Datajack Field Lobotomy Kit Signal Generator [Rating: 103] Favorites ----------- Power Light Nuclear Core Engine Ion Engine Power Core Light Nuclear Core Reactor Antimatter Reactor Propulsion Aluminum Leg Treads Light Treads Leg Aluminum Leg Wheel Centrium Wheel Hover Unit Antigrav System Flight Unit VTOL Module Utility Improved Heat Sink Device Improved Heat Sink Storage Compact Battery Processor Improved Signal Interpreter Hackware Relay Coupler [NC] Protection Core Shielding Weapon Phase Cannon Energy Gun Gatling Laser Energy Cannon Phase Cannon Ballistic Gun KE Penetrator Ballistic Cannon Advanced Assault Cannon Launcher Grenade Launcher Special Weapon Remote Datajack Slashing Weapon Plasma Sword Special Melee Weapon Improved Datajack Build | -11 -10 -10 -10 -9 -8 -8 -8 -7 -7 -6 -6 -6 -6 -5 -5 -5 -4 -4 ------- Run | Yrd Mat Min Exi Min Mat Gar Mat Fac Gar Fac Low Low Dat Pro Fac DSF Fac Gar Slots Evolved 12 | . . . . . 4 . . 2 . 2 . . . . 2 . 2 . Power 1 | . . . . . . . . 1 . . . . . . . . . . Propulsion 2 | . . . . . 1 . . . . . . . . . 1 . . . Utility 8 | . . . . . 3 . . 1 . 1 . . . . 1 . 2 . Weapon 1 | . . . . . . . . . . 1 . . . . . . . . Parts Attached 207 | 5 3 . . 2 26 37 1 35 16 23 5 14 . 11 . 17 5 7 Power 32 | 1 . . . 1 2 5 . 7 3 2 2 4 . . . 4 . 1 Engine 4 | 1 . . . 1 . . . . . 1 1 . . . . . . . Core 25 | . . . . . 2 5 . 7 3 1 1 4 . . . 2 . . Reactor 3 | . . . . . . . . . . . . . . . . 2 . 1 Propulsion 40 | 2 . . . . 5 6 1 7 1 5 . 4 . 4 . 5 . . Treads 1 | . . . . . . 1 . . . . . . . . . . . . Leg 33 | 2 . . . . 5 5 1 7 1 5 . 3 . 3 . 1 . . Wheel 4 | . . . . . . . . . . . . . . . . 4 . . Hover 1 | . . . . . . . . . . . . . . 1 . . . . Flight 1 | . . . . . . . . . . . . 1 . . . . . . Utility 67 | . 2 . . 1 7 11 . 15 5 7 3 3 . 4 . 5 3 1 Device 43 | . 1 . . 1 2 8 . 13 1 4 3 1 . 3 . 3 2 1 Storage 3 | . . . . . . 1 . . . . . 2 . . . . . . Processor 7 | . . . . . 4 . . . . 1 . . . 1 . . 1 . Hackware 6 | . . . . . . . . 1 4 1 . . . . . . . . Protection 8 | . 1 . . . 1 2 . 1 . 1 . . . . . 2 . . Artifact . | . . . . . . . . . . . . . . . . . . . Weapon 68 | 2 1 . . . 12 15 . 6 7 9 . 3 . 3 . 3 2 5 Energy Gun 13 | 1 . . . . . 4 . 1 1 . . 1 . 2 . . . 3 Energy Cannon 5 | . . . . . 1 2 . 2 . . . . . . . . . . Ballistic Gun 19 | 1 . . . . 7 2 . . . 3 . 2 . 1 . 3 . . Ballistic Cannon 8 | . . . . . . . . 1 3 2 . . . . . . 2 . Launcher 5 | . 1 . . . 1 2 . 1 . . . . . . . . . . Special Weapon 10 | . . . . . . 2 . . 3 3 . . . . . . . 2 Impact Weapon . | . . . . . . . . . . . . . . . . . . . Slashing Weapon 2 | . . . . . 1 . . . . 1 . . . . . . . . Piercing Weapon . | . . . . . . . . . . . . . . . . . . . Special Melee Weapon 6 | . . . . . 2 3 . 1 . . . . . . . . . . Unidentified Prototypes 3 | . . . . 1 2 . . . . . . . . . . . . . Corrupted Parts 2 | . . . . . . . . . . . . . . 2 . . . . System Corruption 8 | . . . . . . . . . . . . . . 8 . . . . Parts Lost 82 | . . . . . 4 18 1 10 1 2 5 17 . 1 . 1 6 16 Power 11 | . . . . . 1 1 . 2 . . 1 3 . . . . 1 2 Propulsion 24 | . . . . . 3 5 1 3 . . . 6 . 1 . 1 . 4 Utility 30 | . . . . . . 8 . 4 1 2 3 4 . . . . 3 5 Weapon 17 | . . . . . . 4 . 1 . . 1 4 . . . . 2 5 Highest Loss Streak 16 | . . . . . 2 3 1 6 1 1 4 7 . 1 . 1 3 16 To Critical Strikes . | . . . . . . . . . . . . . . . . . . . Average Slot Usage (%) 89 | . 94 100 100 100 94 91 99 95 98 90 83 53 13 55 . 81 83 70 Engine 2 | . 14 14 14 14 1 . . . . 4 3 . . . . . . . Core 7 | . . . . . 6 8 9 13 15 7 8 4 . . . 1 . . Leg 20 | . 28 28 28 28 26 25 26 20 23 19 18 12 . 10 . 11 . . Wheel 1 | . . . . . . . . . . . . . . . . 5 21 18 Device 18 | . 10 14 14 14 13 20 27 27 24 24 18 7 . 13 . 17 13 17 Processor 8 | . . . . . 15 13 9 7 5 2 6 6 6 10 . 11 11 14 Hackware 3 | . . . . . . . . 2 6 13 9 6 6 6 . 5 5 4 Protection 7 | . 11 14 14 14 12 5 9 5 7 5 6 . . . . 4 4 . Energy Gun 1 | . 2 . . . . 2 . . 6 . . 1 . 5 . . . . Energy Cannon 3 | . . . . . . 6 18 12 . . . . . . . . . . Ballistic Gun 6 | . 14 14 14 14 15 6 . . . 1 . 2 . 5 . 15 13 . Ballistic Cannon 1 | . . . . . . . . 1 6 8 4 . . . . . 1 6 Launcher 2 | . 11 14 14 14 1 . . . . . . . . . . . . . Naked Turns . | . . . . . . . . . . . . . . . . . . . Heaviest Build 76 | 9 12 12 12 14 24 35 35 43 32 54 54 30 . 12 12 76 76 61 Greatest Support 78 | 20 20 20 20 20 42 42 30 56 56 78 78 63 3 45 45 64 64 64 Greatest Overweight (x) 4 | . . . . . 1 1 1 2 . 1 . . . . . 4 1 . Average Overweight (x) . | . . . . . . . 1 . . . . . . . . . . . Largest Inventory Capacity 5 | 5 5 5 5 5 5 5 5 5 5 5 5 5 5 5 5 5 5 5 Average Capacity 5 | 5 5 5 5 5 5 5 5 5 5 5 5 5 5 5 5 5 5 5 Most Carried 5 | 5 5 5 5 5 5 5 5 5 5 5 5 5 5 5 5 5 5 5 Average Carried 4 | 2 4 4 5 5 4 4 5 4 4 4 5 5 5 5 5 5 4 3 Final Capacity 5 | 5 5 5 5 5 5 5 5 5 5 5 5 5 5 5 5 5 5 5 Final Carried 5 | 2 5 5 5 5 5 5 5 5 5 5 5 5 5 5 5 5 5 2 Class Distribution -------------------- 43% | Scavenger-Mutant 22% | Mutant 16% | Skirmisher 7% | Scavenger-Skirmisher 3% | Tank Dominant Class ---------------- Mutant | -10/Materials Mutant | -10/Mines Mutant | -10/Exiles Skirmisher | -9/Mines Skirmisher | -8/Materials Scavenger-Mutant | -8/Garrison Scavenger-Mutant | -8/Materials Scavenger-Skirmisher | -7/Factory Scavenger-Mutant | -7/Garrison Scavenger-Tank | -6/Factory Mutant | -6/Lower Caves Mutant | -6/Lower Caves Mutant | -6/Data Miner Scavenger-Mutant | -5/Proximity Caves Scavenger-Mutant | -5/Factory Skirmisher | -5/DSF Tank | -4/Factory Scavenger-Mutant | -4/Garrison Resources | -11 -10 -10 -10 -9 -8 -8 -8 -7 -7 -6 -6 -6 -6 -5 -5 -5 -4 -4 ----------- Run | Yrd Mat Min Exi Min Mat Gar Mat Fac Gar Fac Low Low Dat Pro Fac DSF Fac Gar Matter Collected 5514 | 262 93 138 . 10 677 830 19 356 479 732 415 126 . 141 . 396 186 654 Remotely 241 | . 93 138 . 10 . . . . . . . . . . . . . . Salvage Created 5238 | 97 174 70 . . 636 917 298 1047 304 357 85 278 . 14 . 276 637 48 Parts 296 | 1 22 7 . . 41 58 11 43 15 27 9 16 . . . 9 37 . Haulers Intercepted 3 | . . . . . 1 . . . . 2 . . . . . . . . Recyclers Shooed 6 | . . . . . 2 . . 1 . . . . . . . . 3 . Parts Field Recycled . | . . . . . . . . . . . . . . . . . . . Retrieved Matter . | . . . . . . . . . . . . . . . . . . . Parts Self-Destructed 31 | . . . . . . . . . . . 17 11 . 3 . . . . Prevented 1 | . . . . . . . . . . . 1 . . . . . . . Kills | -11 -10 -10 -10 -9 -8 -8 -8 -7 -7 -6 -6 -6 -6 -5 -5 -5 -4 -4 ------- Run | Yrd Mat Min Exi Min Mat Gar Mat Fac Gar Fac Low Low Dat Pro Fac DSF Fac Gar Combat Hostiles Destroyed 121 | . 5 5 . . 12 30 5 18 13 7 4 6 . 1 . 5 9 1 Melee 6 | . . . . . . . . . . . 2 4 . . . . . . Guns 57 | . 1 1 . . 12 23 . . 6 1 . 2 . 1 . 5 5 . Cannons 37 | . . . . . . . 5 17 7 4 2 . . . . . 1 1 AOE 20 | . 4 4 . . . 7 . . . 2 . . . . . . 3 . Classes Destroyed 17 | 1 6 . . . 4 . 1 1 1 1 . . . 1 . 1 . . Worker 7 | . 2 . . . 2 . . 1 . 2 . . . . . . . . Builder 9 | . 1 . . . 1 . . 1 . 3 . . . . . . 3 . Tunneler 1 | . . . . . . . . . . 1 . . . . . . . . Hauler 3 | . . . . . 1 . . . . 2 . . . . . . . . Recycler 6 | 1 1 . . . . . . 3 . . . . . . . . 1 . Operator 2 | . 1 . . . 1 . . . . . . . . . . . . . Drone 1 | . . . . . . . . . . . . . . 1 . . . . Watcher 7 | . 2 . . . 2 . 1 1 . . . . . . . . 1 . Swarmer 39 | . 3 3 . . . 14 . 3 7 3 3 2 . . . . 1 . Grunt 45 | . 2 2 . . 7 12 3 7 2 . . 4 . . . . 5 1 Brawler 5 | . . . . . 1 1 1 1 1 . . . . . . . . . Duelist 2 | . . . . . . . 1 1 . . . . . . . . . . Sentry 7 | . . . . . 2 3 . 1 . . . . . . . . 1 . Specialist 2 | . . . . . . . . . 1 . . . . . . 1 . . Hunter 9 | . . . . . 2 . . . 2 1 1 . . . . 3 . . Programmer 10 | . . . . . . . . 5 . 3 . . . . . . 2 . Heavy 1 | . . . . . . . . . . . . . . . . 1 . . Best Kill Streak 10 | 1 10 3 . . 6 8 3 5 4 5 2 3 . 1 . 3 5 1 Combat Bots Only 8 | . 5 3 . . 3 8 3 3 4 3 2 3 . 1 . 3 3 1 Max Kills in Single Turn 4 | 1 4 2 . . 2 3 1 3 1 4 1 1 . 1 . 1 4 1 Gunslinging . | . . . . . . . . . . . . . . . . . . . Exploded 3 | . 3 2 . . . 3 . . . 2 . . . . . . 2 . Melee 1 | . . . . . . . . . . . 1 1 . . . . . . Uniques/NPCs Destroyed . | . . . . . . . . . . . . . . . . . . . Combat | -11 -10 -10 -10 -9 -8 -8 -8 -7 -7 -6 -6 -6 -6 -5 -5 -5 -4 -4 -------- Run | Yrd Mat Min Exi Min Mat Gar Mat Fac Gar Fac Low Low Dat Pro Fac DSF Fac Gar Hostile Shots Fired 1181 | . 13 15 . . 70 228 25 133 97 47 73 122 . 12 . 99 89 158 Missed 369 | . 3 10 . . 19 64 7 42 28 22 22 36 . 4 . 25 37 50 Damage Taken 13123 | . 104 126 . . 704 1780 171 1335 746 383 918 1492 . 196 . 1325 1287 2556 Core 2740 | . 18 9 . . 41 352 33 167 95 36 117 452 . 20 . 240 87 1073 Absorbed by Shields 1371 | . . . . . 76 557 42 242 261 108 85 . . . . . . . Redirected to Shielding 5 | . 3 2 . . . . . . . . . . . . . . . . Ignored by Resistances 298 | . . . . . . 3 66 106 17 24 . . . . . . 37 45 Regen/Repaired (Parts) 17 | . . . . . . . . 17 . . . . . . . . . . Core Remaining (%) 62 | 100 . . . 89 . . 22 . 62 . . . . 26 . 76 . . Volleys Fired 448 | 4 8 9 . . 64 117 16 54 49 29 15 10 . 12 . 22 28 11 Largest 3 | 2 2 2 . . 2 2 2 2 2 2 1 2 . 1 . 3 3 2 Hottest 170 | 70 50 50 . . 50 170 170 170 128 113 60 92 . 33 . 99 152 130 Shots Fired 807 | 8 15 17 . . 124 174 33 91 83 51 15 16 . 12 . 66 84 18 Gun 509 | 8 8 9 . . 124 153 . . 34 8 . 16 . 12 . 66 66 5 Cannon 260 | . . . . . . 11 33 91 44 37 15 . . . . . 18 11 Launcher 22 | . 7 8 . . . 7 . . . . . . . . . . . . Special 16 | . . . . . . 3 . . 5 6 . . . . . . . 2 Kinetic 551 | 4 8 9 . . 124 105 . 14 44 45 15 10 . 12 . 66 84 11 Thermal 218 | 4 . . . . . 59 33 77 34 . . 6 . . . . . 5 Explosive 22 | . 7 8 . . . 7 . . . . . . . . . . . . Electromagnetic . | . . . . . . . . . . . . . . . . . . . Robot Hit Streak 18 | 3 3 4 . . 10 18 9 7 7 7 1 10 . 11 . 18 8 5 Robot Miss Streak 11 | 1 3 2 . . 10 3 2 3 11 3 3 2 . 6 . 3 3 1 Penetration Max 1 | . . . . . . . . . . . . . . . . 1 1 . Secondary Targets 9 | . . . . . 3 4 . . . . . . . . . 2 . . Max Gunslinging Chain 1 | . . . . . 1 1 . . . . . . . . . 1 . . Shots Hit Robots 520 | 6 7 5 . . 80 118 20 56 51 33 8 27 . 5 . 43 51 10 Core Hits 256 | 2 18 7 . . 45 55 8 24 25 12 4 9 . 2 . 17 26 2 Critical Kills 5 | . . . . . 1 1 . 1 . . . . . . . 1 1 . Critical Parts Destroyed 5 | . . . . . . . . . . . . . . . . 2 3 . Critical Strikes 24 | . . . . . 1 4 . 1 3 3 . 2 . . . 3 7 . Burn 2 | . . . . . . 2 . . . . . . . . . . . . Meltdown 1 | . . . . . . . . 1 . . . . . . . . . . Destroy 12 | . . . . . 1 2 . . . . . . . . . 3 6 . Blast 6 | . . . . . . . . . 3 2 . . . . . . 1 . Sever 3 | . . . . . . . . . . 1 . 2 . . . . . . Melee Attacks 39 | . . . . . 5 . . . . 7 7 20 . . . . . . Impact . | . . . . . . . . . . . . . . . . . . . Slashing 34 | . . . . . . . . . . 7 7 20 . . . . . . Piercing . | . . . . . . . . . . . . . . . . . . . Sneak Attacks 6 | . . . . . 2 . . . . 3 1 . . . . . . . Combat Hostiles 1 | . . . . . . . . . . . 1 . . . . . . . Follow-up Attacks . | . . . . . . . . . . . . . . . . . . . Damage Inflicted 15032 | 74 430 359 . . 1597 2048 658 2131 1102 1684 368 784 . 105 . 971 2397 324 Guns 6761 | 74 80 28 . . 1597 1700 . . 492 96 . 226 . 105 . 971 1240 152 Cannons 4589 | . . . . . . . 658 1950 610 759 193 . . . . . 247 172 Explosions 2579 | . 350 331 . . . 348 . 176 . 464 . . . . . . 910 . Melee 1098 | . . . . . . . . . . 365 175 558 . . . . . . Ramming 5 | . . . . . . . . 5 . . . . . . . . . . Kinetic 7738 | 23 80 28 . . 1597 1213 . 294 610 855 193 110 . 105 . 971 1487 172 Thermal 5078 | 51 . . . . . 487 658 1748 492 464 . 116 . . . . 910 152 Explosive 1113 | . 350 331 . . . 348 . 84 . . . . . . . . . . Electromagnetic . | . . . . . . . . . . . . . . . . . . . Impact . | . . . . . . . . . . . . . . . . . . . Slashing 1098 | . . . . . . . . . . 365 175 558 . . . . . . Piercing . | . . . . . . . . . . . . . . . . . . . Highest Corruption 8 | . . . . . 3 3 3 5 2 . . . . 8 . . 1 1 Average Corruption 3 | . . . . . 3 3 3 3 2 . . . . 7 . . 1 1 Corruption Purged 5 | . . . . . . . . 5 . . . . . . . . . . Corruption Blocked . | . . . . . . . . . . . . . . . . . . . Effects 93 | . . . . . 1 45 8 26 2 . . . . 9 . . . 2 Message Errors 17 | . . . . . . 10 1 4 . . . . . 2 . . . . Matter Fused 29 | . . . . . 1 16 2 5 1 . . . . 4 . . . . Heat Flow Errors 9 | . . . . . . 3 . 4 . . . . . 2 . . . . Energy Discharges 9 | . . . . . . 5 1 3 . . . . . . . . . . Parts Rejected 2 | . . . . . . . . 2 . . . . . . . . . . Data Loss (minor) 10 | . . . . . . 4 . 5 . . . . . . . . . 1 Data Loss (major) 7 | . . . . . . 2 3 1 . . . . . 1 . . . . Misfires 6 | . . . . . . 2 1 1 1 . . . . . . . . 1 Alerts 1 | . . . . . . 1 . . . . . . . . . . . . Weapon Failures 3 | . . . . . . 2 . 1 . . . . . . . . . . Overload Shots . | . . . . . . . . . . . . . . . . . . . Overflow Damage 874 | . . . . . . . . 176 1 294 62 17 . . . . 324 . Projectiles 134 | . . . . . . . . 66 1 63 . . . . . . 4 . Explosions 620 | . . . . . . . . 110 . 190 . . . . . . 320 . Melee 120 | . . . . . . . . . . 41 62 17 . . . . . . Knockbacks 16 | . . . . . . . . 2 8 2 2 . . . . . 1 1 Impact . | . . . . . . . . . . . . . . . . . . . Kinetic 16 | . . . . . . . . 2 8 2 2 . . . . . 1 1 Secondary . | . . . . . . . . . . . . . . . . . . . Self-Inflicted Damage 780 | . 9 71 . . . 76 . 300 . 64 . . . . . . 260 . Shots 16 | . 1 2 . . . 3 . 5 . 1 . . . . . . 4 . Rammed . | . . . . . . . . . . . . . . . . . . . Targets Rammed 1 | . . . . . . . . 1 . . . . . . . . . . Kicked 1 | . . . . . . . . 1 . . . . . . . . . . Crushed . | . . . . . . . . . . . . . . . . . . . Highest Temperature 326 | 36 8 12 . . 224 326 219 321 209 2 10 44 . 159 . 109 32 62 Average Temperature 93 | 19 6 6 . . 29 123 90 140 75 2 10 17 . 80 . 60 15 37 Received Heat Transfer 2950 | . 24 30 . . 282 790 168 230 27 36 115 417 . 90 . 132 243 366 Effects 5 | . . . . . . 1 . 4 . . . . . . . . . . Energy Bleed 1 | . . . . . . 1 . . . . . . . . . . . . Interference 4 | . . . . . . . . 4 . . . . . . . . . . Siege Activations . | . . . . . . . . . . . . . . . . . . . Robots Corrupted . | . . . . . . . . . . . . . . . . . . . Combat Hostiles . | . . . . . . . . . . . . . . . . . . . Parts Fried 2 | . . . . . 2 . . . . . . . . . . . . . Impact Corruptions . | . . . . . . . . . . . . . . . . . . . Robots Melted 1 | . . . . . . . . 1 . . . . . . . . . . Combat Hostiles 1 | . . . . . . . . 1 . . . . . . . . . . Parts Melted 14 | . . . . . . 4 2 5 . 1 . . . . . . 2 . Heat Transferred 6789 | 148 . . . . . 1295 777 1937 1125 350 . 222 . . . . 750 185 Parts Sabotaged . | . . . . . . . . . . . . . . . . . . . Parts Stolen . | . . . . . . . . . . . . . . . . . . . Parts Stripped . | . . . . . . . . . . . . . . . . . . . Power Chain Reactions . | . . . . . . . . . . . . . . . . . . . Alert | -11 -10 -10 -10 -9 -8 -8 -8 -7 -7 -6 -6 -6 -6 -5 -5 -5 -4 -4 ------- Run | Yrd Mat Min Exi Min Mat Gar Mat Fac Gar Fac Low Low Dat Pro Fac DSF Fac Gar Peak Influence 1548 | 5 255 353 . 11 327 1548 1133 677 1050 822 . . . . 450 390 538 458 Initial 754 | . 3 99 . . 3 162 754 427 415 550 . . . . 450 318 204 366 Average 474 | 1 72 187 . 7 127 821 1010 376 697 623 . . . . 450 342 308 389 Maximum Alert Level 4 | . 1 1 . . 1 4 4 2 3 3 . . . . 2 1 2 2 Low Security (%) 22 | 100 78 75 . 100 59 2 . 4 . . . . . . . . . . Level 1 28 | . 21 24 . . 40 17 . 47 . . . . . . . 100 82 86 Level 2 24 | . . . . . . 11 . 47 55 85 . . . . 100 . 17 13 Level 3 18 | . . . . . . 47 62 . 44 14 . . . . . . . . Level 4 6 | . . . . . . 21 37 . . . . . . . . . . . Level 5 . | . . . . . . . . . . . . . . . . . . . High Security . | . . . . . . . . . . . . . . . . . . . Max Security . | . . . . . . . . . . . . . . . . . . . Squads Dispatched 25 | . 1 . . . 4 . 3 5 . 6 . . . . . 2 4 . Investigation 9 | . . . . . 2 . 2 1 . 2 . . . . . . 2 . Extermination 7 | . . . . . . . . 4 . 1 . . . . . . 2 . Reinforcement 7 | . 1 . . . 2 . . . . 2 . . . . . 2 . . Assault 1 | . . . . . . . . . . 1 . . . . . . . . Garrison 1 | . . . . . . . 1 . . . . . . . . . . . Intercept . | . . . . . . . . . . . . . . . . . . . Searches Triggered . | . . . . . . . . . . . . . . . . . . . Construction Impeded 1 | . . . . . . . . . . 1 . . . . . . . . Haulers Reinforced . | . . . . . . . . . . . . . . . . . . . Active Scanning Responses . | . . . . . . . . . . . . . . . . . . . Cargo Convoy Interrupts 1 | . . . . . . . . . . 1 . . . . . . . . Stealth | -11 -10 -10 -10 -9 -8 -8 -8 -7 -7 -6 -6 -6 -6 -5 -5 -5 -4 -4 --------- Run | Yrd Mat Min Exi Min Mat Gar Mat Fac Gar Fac Low Low Dat Pro Fac DSF Fac Gar Distress Signals 7 | . 1 1 . . 2 . 1 1 . . . . . . . . 1 . Communications Jammed 21 | . . . . . . . . . . . . . . . . . 21 . Distress Signals 20 | . . . . . . . . . . . . . . . . . 20 . Times Spotted 242 | . 8 6 . . 32 42 7 25 16 29 13 14 . 9 . 5 17 19 Peak Tracking Total 13 | . 5 3 . . 5 6 4 5 5 7 5 4 . 3 . 3 8 13 Tactical Retreats 15 | . . . . . 2 5 . 1 2 . 1 2 . . . . . 2 Traps | -11 -10 -10 -10 -9 -8 -8 -8 -7 -7 -6 -6 -6 -6 -5 -5 -5 -4 -4 ------- Run | Yrd Mat Min Exi Min Mat Gar Mat Fac Gar Fac Low Low Dat Pro Fac DSF Fac Gar Traps Triggered 12 | . . . . . . 2 . 3 4 1 . . . . . 1 1 . Indirectly . | . . . . . . . . . . . . . . . . . . . Trap Hack Attempts 120 | . . . . . 45 61 . 14 . . . . . . . . . . Triggered . | . . . . . . . . . . . . . . . . . . . Disarmed 1 | . . . . . 1 . . . . . . . . . . . . . Reprogrammed 14 | . . . . . 6 6 . 2 . . . . . . . . . . Reused 2 | . . . . . 2 . . . . . . . . . . . . . Traps Extracted . | . . . . . . . . . . . . . . . . . . . Installed . | . . . . . . . . . . . . . . . . . . . Triggered 2 | . . . . . 2 . . . . . . . . . . . . . Machines | -11 -10 -10 -10 -9 -8 -8 -8 -7 -7 -6 -6 -6 -6 -5 -5 -5 -4 -4 ---------- Run | Yrd Mat Min Exi Min Mat Gar Mat Fac Gar Fac Low Low Dat Pro Fac DSF Fac Gar Machines Disabled 37 | . 1 6 . . 1 4 2 8 3 2 . . . . . . 9 1 Max in Single Turn 4 | . 1 3 . . 1 1 . 3 1 2 . . . . . . 4 . Garrison Access 1 | . . . . . . . . . . 1 . . . . . . . . Garrison Relay 6 | . . . . . . 3 . . 3 . . . . . . . . . Machines Repaired . | . . . . . . . . . . . . . . . . . . . Machines Dismantled . | . . . . . . . . . . . . . . . . . . . Machines Sabotaged . | . . . . . . . . . . . . . . . . . . . Overloaded Fab Kills . | . . . . . . . . . . . . . . . . . . . Hacking | -11 -10 -10 -10 -9 -8 -8 -8 -7 -7 -6 -6 -6 -6 -5 -5 -5 -4 -4 --------- Run | Yrd Mat Min Exi Min Mat Gar Mat Fac Gar Fac Low Low Dat Pro Fac DSF Fac Gar Machines Accessed 44 | . 3 1 1 1 7 2 4 7 4 5 . . 4 . 1 . 4 . Terminals 21 | . 2 1 . 1 4 2 2 1 4 2 . . . . 1 . 1 . Fabricators 8 | . . . . . . . . 4 . 2 . . . . . . 2 . Repair Stations 2 | . 1 . . . . . . 1 . . . . . . . . . . Recycling Units . | . . . . . . . . . . . . . . . . . . . Scanalyzers 4 | . . . . . 2 . 2 . . . . . . . . . . . Garrison Access 4 | . . . . . 1 . . 1 . 1 . . . . . . 1 . Total Hacks 129 | . 9 4 1 3 17 3 20 16 5 11 . . 28 . 4 . 8 . Successful 74 | . 4 2 1 2 9 . 9 7 2 5 . . 28 . 1 . 4 . Failed 54 | . 4 2 . 1 8 3 11 9 3 6 . . . . 3 . 4 . Catastrophic 7 | . 1 . . . . 1 2 1 . 1 . . . . . . 1 . Database Lockouts 1 | . 1 . . . . . . . . . . . . . . . . . Manual 45 | . 9 1 1 2 7 . 3 9 . 9 . . . . . . 4 . Terminals 55 | . 8 4 . 3 9 3 10 2 5 4 . . . . 4 . 3 . Fabricators 19 | . . . . . . . . 9 . 6 . . . . . . 4 . Repair Stations 5 | . 1 . . . . . . 4 . . . . . . . . . . Recycling Units . | . . . . . . . . . . . . . . . . . . . Scanalyzers 16 | . . . . . 6 . 10 . . . . . . . . . . . Garrison Access 5 | . . . . . 2 . . 1 . 1 . . . . . . 1 . Terminal Hacks 45 | . 2 2 1 2 2 . 4 . 2 . . . 28 . 1 . 1 . Record 11 | . . . . . . . . . . . . . 11 . . . . . Part Schematic 9 | . . . . . . . . . . . . . 9 . . . . . Robot Schematic 5 | . . . . . . . . . . . . . 5 . . . . . Robot Analysis 6 | . 2 1 . 1 . . 2 . . . . . . . . . . . Prototype ID Bank 4 | . . . . . 1 . . . . . . . 3 . . . . . Open DSF 1 | . . . . . . . . . . . . . . . 1 . . . Branch Access Points 2 | . . . . . . . 1 . . . . . . . . . 1 . Emergency Access Points 2 | . . . . . . . 1 . 1 . . . . . . . . . Zone Layout 3 | . . 1 . 1 1 . . . . . . . . . . . . . Garrison Registry 1 | . . . . . . . . . 1 . . . . . . . . . Derelict Proto ID Bank 1 | . . . 1 . . . . . . . . . . . . . . . Fabricator Hacks 2 | . . . . . . . . 1 . 1 . . . . . . . . Network Status 2 | . . . . . . . . 1 . 1 . . . . . . . . Repair Station Hacks 2 | . . . . . . . . 2 . . . . . . . . . . Scan Component 1 | . . . . . . . . 1 . . . . . . . . . . Repair 1 | . . . . . . . . 1 . . . . . . . . . . Recycling Unit Hacks . | . . . . . . . . . . . . . . . . . . . Scanalyzer 9 | . . . . . 4 . 5 . . . . . . . . . . . Insert Component 6 | . . . . . 3 . 3 . . . . . . . . . . . Analyze 3 | . . . . . 1 . 2 . . . . . . . . . . . Garrison Access Hacks 4 | . . . . . 1 . . 1 . 1 . . . . . . 1 . Unlock Access 3 | . . . . . 1 . . 1 . . . . . . . . 1 . Seal Access 1 | . . . . . . . . . . 1 . . . . . . . . Unauthorized Hacks 12 | . 2 . . . 2 . . 3 . 3 . . . . . . 2 . Terminals 7 | . 2 . . . 2 . . 1 . 2 . . . . . . . . Botnet 7 | . 2 . . . 2 . . 1 . 2 . . . . . . . . Fabricators 5 | . . . . . . . . 2 . 1 . . . . . . 2 . Fabnet 5 | . . . . . . . . 2 . 1 . . . . . . 2 . Repair Stations . | . . . . . . . . . . . . . . . . . . . Recycling Units . | . . . . . . . . . . . . . . . . . . . Scanalyzers . | . . . . . . . . . . . . . . . . . . . Garrison Access . | . . . . . . . . . . . . . . . . . . . Data Cores Recovered 1 | . . . . . . . . . . 1 . . . . . . . . Used 1 | . . . . . . . . . . 1 . . . . . . . . Hacking Detections 30 | . 1 1 . 1 6 2 4 5 3 3 . . . . 1 . 3 . Full Trace Events 8 | . . . . . 2 . 2 1 . 1 . . . . . . 2 . Feedback Events . | . . . . . . . . . . . . . . . . . . . Feedback Blocked . | . . . . . . . . . . . . . . . . . . . Robot Schematics Acquired 5 | . . . . . . . . . . . . . 5 . . . . . Robots Built . | . . . . . . . . . . . . . . . . . . . Authchips . | . . . . . . . . . . . . . . . . . . . Time . | . . . . . . . . . . . . . . . . . . . Total Robot Build Rating . | . . . . . . . . . . . . . . . . . . . Part Schematics Acquired 10 | . . . . . . . 1 . . . . . 9 . . . . . Parts Built . | . . . . . . . . . . . . . . . . . . . Authchips . | . . . . . . . . . . . . . . . . . . . Time . | . . . . . . . . . . . . . . . . . . . Total Part Build Rating . | . . . . . . . . . . . . . . . . . . . Parts Repaired 1 | . . . . . . . . 1 . . . . . . . . . . Time 136 | . . . . . . . . 136 . . . . . . . . . . Parts Recycled . | . . . . . . . . . . . . . . . . . . . Recycled Matter . | . . . . . . . . . . . . . . . . . . . Retrieved Matter . | . . . . . . . . . . . . . . . . . . . Retrieved Components . | . . . . . . . . . . . . . . . . . . . Parts Scanalyzed 3 | . . . . . 2 . 1 . . . . . . . . . . . Part Schematics Acquired 1 | . . . . . . . 1 . . . . . . . . . . . Parts Damaged 2 | . . . . . 1 . 1 . . . . . . . . . . . Bothacking | -11 -10 -10 -10 -9 -8 -8 -8 -7 -7 -6 -6 -6 -6 -5 -5 -5 -4 -4 ------------ Run | Yrd Mat Min Exi Min Mat Gar Mat Fac Gar Fac Low Low Dat Pro Fac DSF Fac Gar Used RIF Installer 2 | . . . . . . 1 . . 1 . . . . . . . . . Robot Detection 1 | . . . . . . . . . 1 . . . . . . . . . Robots Hacked 10 | . . . . . 2 . . . 2 4 1 1 . . . . . . Non-combat 4 | . . . . . 2 . . . . 2 . . . . . . . . Combat 6 | . . . . . . . . . 2 2 1 1 . . . . . . Robot Hacks Applied 9 | . . . . . 3 . . . 2 4 . . . . . . . . parse_system 2 | . . . . . 2 . . . . . . . . . . . . . no_distress 1 | . . . . . 1 . . . . . . . . . . . . . drop_inventory 1 | . . . . . . . . . . 1 . . . . . . . . purge_threat 1 | . . . . . . . . . . 1 . . . . . . . . amplify_resonance 1 | . . . . . . . . . . 1 . . . . . . . . formatsys_high 3 | . . . . . . . . . 2 1 . . . . . . . . Relay Couplers Released 22 | . . . . . . 11 . . 11 . . . . . . . . . Machine Destruction 22 | . . . . . . 11 . . 11 . . . . . . . . . Attached 5 | . . . . . . . . . 4 1 . . . . . . . . Fabnet Peak Effective % 6 | . . . . . . . . . . 6 6 6 6 5 5 5 1 1 Autooverrided 3 | . . . . . . . . . . 1 1 1 . . . . . . Robots Rewired 4 | . . . . . . . . . 3 . . . . 1 . . . . Allies Hacked . | . . . . . . . . . . . . . . . . . . . Hacks Repelled . | . . . . . . . . . . . . . . . . . . . Allies | -11 -10 -10 -10 -9 -8 -8 -8 -7 -7 -6 -6 -6 -6 -5 -5 -5 -4 -4 -------- Run | Yrd Mat Min Exi Min Mat Gar Mat Fac Gar Fac Low Low Dat Pro Fac DSF Fac Gar Total Allies 16 | . . . . . . 2 . . 7 2 1 1 . 2 . . . 1 Largest Group 5 | . . . . . . 2 1 . 5 5 2 1 . 2 2 2 . 1 Highest-Rated Group 265 | . . . . . . 170 85 . 265 265 94 12 . 126 126 126 . 116 Highest-Rated Ally 116 | . . . . . . 85 85 . 95 95 85 12 . 96 96 96 . 116 Total Orders 3 | . . . . . . 2 1 . . . . . . . . . . . STAY 1 | . . . . . . 1 . . . . . . . . . . . . ROAM 1 | . . . . . . . 1 . . . . . . . . . . . FOLLOW 1 | . . . . . . 1 . . . . . . . . . . . . Ally Attacks 156 | . . . . . . 16 9 . 10 62 7 7 . 23 . 20 . 2 Total Damage 5832 | . . . . . . 802 423 . 167 2475 193 60 . 961 . 659 . 92 Kills 43 | . . . . . . 9 8 . 1 15 4 . . 6 . . . . Allies Corrupted . | . . . . . . . . . . . . . . . . . . . Allies Melted . | . . . . . . . . . . . . . . . . . . . Field Lobotomies 3 | . . . . . . 2 . . . . . . . . . . . 1 Intel | -11 -10 -10 -10 -9 -8 -8 -8 -7 -7 -6 -6 -6 -6 -5 -5 -5 -4 -4 ------- Run | Yrd Mat Min Exi Min Mat Gar Mat Fac Gar Fac Low Low Dat Pro Fac DSF Fac Gar Robot Analysis Total 6 | . 2 1 . 1 . . 2 . . . . . . . . . . . Derelict Logs Recovered 3 | . . 1 . . . . . . . . 1 1 . . . . . . Drone Launches . | . . . . . . . . . . . . . . . . . . . Drone Recoveries . | . . . . . . . . . . . . . . . . . . . Exploration | -11 -10 -10 -10 -9 -8 -8 -8 -7 -7 -6 -6 -6 -6 -5 -5 -5 -4 -4 ------------- Run | Yrd Mat Min Exi Min Mat Gar Mat Fac Gar Fac Low Low Dat Pro Fac DSF Fac Gar Turns Passed 13074 | 63 275 873 258 368 1702 2288 471 1738 1270 887 469 673 39 679 5 242 564 210 Spaces Moved 7728 | 42 199 458 214 304 947 1245 214 836 710 675 343 382 78 445 5 101 366 164 Core 162 | 16 . . . . . . . . . . . 11 78 53 . . . 4 Treads . | . . . . . . . . . . . . . . . . . . . Legs 6799 | 26 199 458 214 304 947 1245 214 836 710 675 343 371 . 185 5 67 . . Wheels 560 | . . . . . . . . . . . . . . . . 34 366 160 Hover 207 | . . . . . . . . . . . . . . 207 . . . . Flight . | . . . . . . . . . . . . . . . . . . . Fastest Speed 50 | 50 120 120 120 120 120 120 190 120 113 100 105 50 50 50 120 110 90 50 Average Speed 125 | 93 120 120 120 120 122 146 190 163 120 108 108 103 50 83 120 137 108 89 Slowest Speed 260 | 120 120 120 120 120 190 190 190 260 123 183 110 110 50 120 120 190 110 90 Overloaded Moves . | . . . . . . . . . . . . . . . . . . . Propulsion Burnouts . | . . . . . . . . . . . . . . . . . . . Robots Hopped . | . . . . . . . . . . . . . . . . . . . Cave-ins Triggered . | . . . . . . . . . . . . . . . . . . . Exploration Rate (%) 46 | 4 34 66 61 70 48 72 32 21 56 17 55 47 68 62 . 86 9 36 Regions Visited 18 Branch Regions 7 Pre-discovered Areas 1 | . . . . . . . . . . . . . 1 . . . . . Known Exits Taken 10 | . . . . . 1 . 1 1 . 1 1 1 1 1 1 . 1 . Unknown Exits Taken 5 | 1 1 1 1 1 . . . . . . . . . . . . . . Scrap Searched 8 | . . . . 1 . . . . . . 2 2 . 3 . . . . Spaces Dug . | . . . . . . . . . . . . . . . . . . . Terrain Destroyed 318 | . 34 51 . . . 12 11 92 . 30 14 . . 1 . . 72 1 Melee . | . . . . . . . . . . . . . . . . . . . Projectile 79 | . . . . . . . 11 17 . 15 14 . . 1 . . 20 1 AOE 239 | . 34 51 . . . 12 . 75 . 15 . . . . . . 52 . Terrain Rammed . | . . . . . . . . . . . . . . . . . . . Walls Destroyed . | . . . . . . . . . . . . . . . . . . . Machines Disabled . | . . . . . . . . . . . . . . . . . . . Actions | -11 -10 -10 -10 -9 -8 -8 -8 -7 -7 -6 -6 -6 -6 -5 -5 -5 -4 -4 --------- Run | Yrd Mat Min Exi Min Mat Gar Mat Fac Gar Fac Low Low Dat Pro Fac DSF Fac Gar Total 10285 | 59 221 766 215 307 1373 1532 246 1113 1036 758 406 609 77 734 4 151 467 211 Wait 1560 | . 3 294 . . 260 58 16 138 219 11 33 180 . 262 . 1 67 18 Move 7707 | 41 198 457 213 303 946 1242 213 835 708 674 342 381 77 444 4 100 365 164 Hop . | . . . . . . . . . . . . . . . . . . . Pick Up 60 | 8 7 3 1 . 12 4 . 13 2 2 . . . . . . 1 7 Fast Attach 115 | . . . . 1 9 19 1 16 6 12 5 14 . 11 . 17 4 . Attach 39 | 5 2 . . . 6 6 . 11 1 . . . . . . . 1 7 Detach 4 | . . . . . 1 2 . 1 . . . . . . . . . . Swap 53 | . 1 . . 1 11 12 . 8 9 11 . . . . . . . . Drop 94 | 1 2 3 1 2 14 6 . 17 11 12 4 4 . 1 . 11 1 4 Fire 448 | 4 8 9 . . 64 117 16 54 49 29 15 10 . 12 . 22 28 11 Melee 39 | . . . . . 5 . . . . 7 7 20 . . . . . . Ram . | . . . . . . . . . . . . . . . . . . . Kick 1 | . . . . . . . . 1 . . . . . . . . . . Crush . | . . . . . . . . . . . . . . . . . . . Escape Stasis 17 | . . . . . . 5 . 5 7 . . . . . . . . . Rewire 28 | . . . . . . . . . 24 . . . . 4 . . . . Trap 120 | . . . . . 45 61 . 14 . . . . . . . . . . Miscellaneous . | . . . . . . . . . . . . . . . . . . . Route ------- -11/Scrapyard -10/Materials -10/Mines (discovered 3 exits: [*Mat x2] / *Exi) -10/Exiles -9/Mines -8/Materials -8/Garrison (discovered 3 exits: *Mat x3) -8/Materials -7/Factory (discovered 2 exits: *Fac / Gar) -7/Garrison (discovered 3 exits: *Fac x3) -6/Factory -6/Lower Caves -6/Lower Caves -6/Data Miner -5/Proximity Caves -5/Factory (discovered 2 exits: Upp / DSF) -5/DSF -4/Factory (discovered 4 exits: *Upp x2 / Arm / Gar) -4/Garrison History --------- Turn | Location | Event 18 | -11/Scrapyard | Discovered new exit (range 16) 64 | -11/Scrapyard | Entered Materials 242 | -10/Materials | Central database locked down 256 | -10/Materials | Discovered new exit (range 13) 305 | -10/Materials | Build established: Mutant 339 | -10/Materials | Entered Mines 400 | -10/Mines | Met a Derelict bent on vengeance 708 | -10/Mines | Discovered new exit (range 4) 709 | -10/Mines | Met a Derelict testing a Signal Generator 716 | -10/Mines | Found Signal Generator 763 | -10/Mines | Excavation squad dispatched 763 | -10/Mines | A large section of the Mines collapsed 1185 | -10/Mines | Discovered new exit (range 9) 1202 | -10/Mines | Deemed a non-threat by the Exiles lab entrance 1203 | -10/Mines | Discovered new exit (range 5) 1212 | -10/Mines | Entered Exiles 1245 | -10/Exiles | Met 8R-AWN 1262 | -10/Exiles | Met EX-HEX 1296 | -10/Exiles | Met EX-BIN 1313 | -10/Exiles | Aligned with FarCom system 1314 | -10/Exiles | Given EX-Vault access code 1343 | -10/Exiles | Opened EX-Vault 1353 | -10/Exiles | Found Field Lobotomy Kit 1380 | -10/Exiles | Warned to stay clear of 0b10 Research branches 1414 | -10/Exiles | Met EX-DEC 1459 | -10/Exiles | Discovered new exit (range 10) 1470 | -10/Exiles | Left Exiles lab with Field Lobotomy Kit 1470 | -10/Exiles | Entered Mines 1574 | -9/Mines | Found a damaged Exp. Sensor Array with a note attached 1577 | -9/Mines | Found Prototype Device 1577 | -9/Mines | Identified Exp. Sensor Array 1784 | -9/Mines | Found a hidden stash of uninstalled traps 1807 | -9/Mines | Received a Rocket Launcher from a helpful Derelict 1828 | -9/Mines | Discovered new exit (range 9) 1838 | -9/Mines | Entered Materials 1838 | -8/Materials | Evolved 4 slots: Propulsion x1, Utility x3 1879 | -8/Materials | Build established: Skirmisher 3539 | -8/Materials | Identified exit to Garrison 3540 | -8/Materials | Entered Garrison 3788 | -8/Garrison | Triggered checkpoint 3856 | -8/Garrison | Lost 3 parts (1p2u) 3924 | -8/Garrison | Build established: Scavenger-Mutant 3986 | -8/Garrison | Triggered checkpoint 4000 | -8/Garrison | Triggered checkpoint 4018 | -8/Garrison | Spotted B-75 Beast 4031 | -8/Garrison | Destroyed 8 combat bots 4427 | -8/Garrison | Discovered new exit (range 15) 4443 | -8/Garrison | Identified exit to Materials 4468 | -8/Garrison | Triggered checkpoint 4554 | -8/Garrison | Triggered checkpoint 4640 | -8/Garrison | Discovered exit to Materials (range 8) 4716 | -8/Garrison | Triggered checkpoint 4734 | -8/Garrison | Core integrity fell below 50% 4808 | -8/Garrison | Lost 3 parts (1n2u) 4908 | -8/Garrison | Spotted B-75 Beast 4932 | -8/Garrison | Discovered exit to Materials (range 15) 4953 | -8/Garrison | Attempted to access garrison exit controls, blocked by remote lockdown 4991 | -8/Garrison | Assimilated B-75 Beast with FLK Orb 5009 | -8/Garrison | Assimilated B-75 Beast with FLK Orb 5022 | -8/Garrison | Triggered checkpoint 5036 | -8/Garrison | Triggered checkpoint 5314 | -8/Garrison | Garrison Relay disabled 5421 | -8/Garrison | Garrison Relay disabled 5628 | -8/Garrison | Triggered checkpoint 5716 | -8/Garrison | Installed Relay Interface Framework 5757 | -8/Garrison | Garrison Relay disabled 5828 | -8/Garrison | Entered Materials 5828 | -8/Materials | Accompanied by 1 ally 5920 | -8/Materials | Garrison activated, responded to threat 6251 | -8/Materials | Discovered new exit (range 11) 6268 | -8/Materials | Identified exit to Factory 6299 | -8/Materials | Entered Factory 6299 | -7/Factory | Evolved 2 slots: Power x1, Utility x1 6454 | -7/Factory | Repaired Broken Exp. Sensor Array? 6941 | -7/Factory | Build established: Scavenger-Skirmisher 7431 | -7/Factory | Discovered new exit (range 13) 7444 | -7/Factory | Identified exit to Factory 7594 | -7/Factory | Lost 3 parts (1p2u) 7634 | -7/Factory | Lost 6 parts (1p2n2u1w) 8036 | -7/Factory | Identified exit to Garrison 8037 | -7/Factory | Entered Garrison 8090 | -7/Garrison | Build established: Scavenger-Mutant 8151 | -7/Garrison | Triggered checkpoint 8192 | -7/Garrison | Garrison Relay disabled 8625 | -7/Garrison | Triggered checkpoint 8693 | -7/Garrison | Discovered exit to Factory (range 13) 8725 | -7/Garrison | Triggered checkpoint 8747 | -7/Garrison | Discovered exit to Factory (range 72) 8747 | -7/Garrison | Discovered exit to Factory (range 59) 8747 | -7/Garrison | Discovered exit to Factory (range 12) 8769 | -7/Garrison | Garrison Relay disabled 9059 | -7/Garrison | Triggered checkpoint 9085 | -7/Garrison | Triggered checkpoint 9091 | -7/Garrison | Found embedded Infiltrators 9134 | -7/Garrison | Expanded RIF knowledge: Robot Detection 9187 | -7/Garrison | Garrison Relay disabled 9307 | -7/Garrison | Entered Factory 9307 | -6/Factory | Accompanied by 5 allies 9307 | -6/Factory | Evolved 2 slots: Utility x1, Weapon x1 9359 | -6/Factory | Discovered new exit (range 3) 9606 | -6/Factory | P-60 Hacker assimilated allied Fighter 4b 9727 | -6/Factory | Lost 4 allies 9973 | -6/Factory | Cargo convoy interrupted 9974 | -6/Factory | Local machine network offline 10007 | -6/Factory | First assault squad dispatched 10190 | -6/Factory | Identified exit to Lower Caves 10194 | -6/Factory | Entered Lower Caves 10194 | -6/Lower Caves | Accompanied by 1 ally 10270 | -6/Lower Caves | Encountered a Warlord checkpoint 10370 | -6/Lower Caves | Build established: Mutant 10410 | -6/Lower Caves | Lost 3 allies 10534 | -6/Lower Caves | Attracted the attention of an 0b10 outpost 10608 | -6/Lower Caves | Lost 4 parts (3u1w) 10647 | -6/Lower Caves | Discovered new exit (range 6) 10653 | -6/Lower Caves | Identified exit to Lower Caves 10663 | -6/Lower Caves | Entered another Lower Caves area 10767 | -6/Lower Caves | Learned Factory terminal intel 10779 | -6/Lower Caves | Lost 4 parts (2p1n1u) 11221 | -6/Lower Caves | Lost 7 parts (1p1n3u2w) 11242 | -6/Lower Caves | Core integrity fell below 50% 11333 | -6/Lower Caves | Discovered new exit (range 5) 11335 | -6/Lower Caves | Identified exit to Data Miner 11336 | -6/Lower Caves | Entered Data Miner 11336 | -6/Data Miner | Discovered new exit (range 6) 11338 | -6/Data Miner | Identified exit to Proximity Caves 11346 | -6/Data Miner | Met Data Miner 11356 | -6/Data Miner | Learned location of Section 7 (-3) 11356 | -6/Data Miner | Acquired the access code to Warlord's prototype stash 11362 | -6/Data Miner | Lost 5 parts (3n2w) 11363 | -6/Data Miner | Received God Mode back door access code from Data Miner 11375 | -6/Data Miner | Entered Proximity Caves 11408 | -5/Proximity Caves | Spotter reported a threat 11408 | -5/Proximity Caves | Spotter reported a threat 11564 | -5/Proximity Caves | Escorted by Enhanced Grunt 11570 | -5/Proximity Caves | Spotter reported a threat 11774 | -5/Proximity Caves | Spotted B-75 Beast 11831 | -5/Proximity Caves | Discovered new exit (range 8) 11838 | -5/Proximity Caves | Identified exit to Factory 11966 | -5/Proximity Caves | Received a Behemoth hack from an annoying Tinkerer 12054 | -5/Proximity Caves | Entered Factory 12054 | -5/Factory | Accompanied by 2 allies 12054 | -5/Factory | Evolved 2 slots: Propulsion x1, Utility x1 12055 | -5/Factory | Identified exit to Upper Caves 12056 | -5/Factory | Loaded intel: 26 terminal locations 12059 | -5/Factory | Identified exit to DSF 12059 | -5/Factory | Entered DSF 12059 | -5/DSF | Accompanied by 2 allies 12071 | -5/DSF | Build established: Scavenger-Mutant 12079 | -5/DSF | Additional patrols routed to DSF 12258 | -5/DSF | Discovered new exit (range 14) 12271 | -5/DSF | Identified exit to Factory 12301 | -5/DSF | Entered Factory 12301 | -4/Factory | Evolved 2 slots: Utility x2 12369 | -4/Factory | Identified exit to Upper Caves 12369 | -4/Factory | Identified exit to Armory 12859 | -4/Factory | Identified exit to Garrison 12865 | -4/Factory | Entered Garrison 12879 | -4/Garrison | Triggered checkpoint 12886 | -4/Garrison | Lost 3 parts (2u1w) 12991 | -4/Garrison | Triggered checkpoint 13011 | -4/Garrison | Spotted B-86 Titan 13015 | -4/Garrison | Triggered checkpoint 13019 | -4/Garrison | Assimilated B-86 Titan with FLK Orb 13020 | -4/Garrison | Triggered checkpoint 13022 | -4/Garrison | Triggered checkpoint 13024 | -4/Garrison | Triggered checkpoint 13042 | -4/Garrison | Spotted B-86 Titan 13042 | -4/Garrison | Spotted B-86 Titan 13059 | -4/Garrison | Core integrity fell below 50% 13069 | -4/Garrison | Core integrity fell below 20% 13075 | -4/Garrison | Destroyed by B-86 Titan with Hardcell Cannon Last Messages --------------- Adv. Signal Interpreter destroyed. Imp. Target Analyzer destroyed. B-86 Titan activates siege mode. Acquired Enh. Quantum Rifle. Penetrated by Slug. Adv. Cooling System destroyed. Slug penetrates Wall. Enh. Quantum Rifle destroyed. Penetrated by Slug. Centrium Wheel destroyed. Dropped Mak. Transmission Jammer. Penetrated by Slug. Slug penetrates Wall. Acquired Enh. Quantum Rifle. Acquired 2 matter. Slug penetrates Wall. Dropped Energy Well. Extracted 76 energy. Extracted 15 energy. Extracted 19 energy. Map ----- +----------------------------------------------------+ | ????????????????????????????????????????????????? | | ????????????????????????????????????????????????? | | ????????????????????????????????????????????????? | | ????????????????????????????????????????????????? | | ????????????? ?????????????????????????????????? | | ??? ????????? ?????????????????????????????????? | | ??? ????????? ?????????????????????????????????? | | ??# ????????? #????????????????????????????????? | | ??# ????????? +???????g????????????????????????? | | ??# ????????" #???????g????????????????????????? | | ??# ????????# #????????????????????????????????? | | ??# ####????# #????????????????????????????????? | | ??# ???? ????????????????????????????????? | | ??# ????? ????????????????????????????????? | | ??# ????? ????????????????????????????????? | | ??# #?????# #????????????????????????????????? | | ??# #?????# #????????????????????????????????? | | ### #?????# #????????????????????????????????? | | # #?????# #????????????????????????????????? | | ## #?????# #????????????????????????????????? | | "## #?????# #????????????????????????????????? | | ## #?????#g #???????????##???????????????????? | | ## #?????# g############;????????????????????? | | ####### ##;##%! %!!!#????????????????????? | | h g gg% #????????????????????? | | %Y Y g Y h BB@ #????????????????????? | | ## #############; BBBB %#????????????????????? | | ## #???????????#! BB #????????????????????? | | ??????????#! #????????????????????? | | #?????????##########????????????????????? | | #???????????????????????????????????????? | | #???????????????????????????????????????? | | ## ###???????????????????????????????????????? | | ## #?????????????????????????????????????????? | | #?????????????????????????????????????????? | | #?????????????????????????????????????????? | | #?????????????????????????????????????????? | | ## ##?????????????????????????????????????????? | | ## #??????????????????????????????????????????? | | ### #???????????????????g??????????????????????? | | ??# ????????????????????g??????????????????????? | | ??# ???????????????????????????????????????????? | | ??? ???????????????????????????????????????????? | | ??? ???????????????????????????????????????????? | | ????????????????????????????????????????????????? | | ????????????????????????????????????????????????? | | ????????????????????????????????????????????????? | | ????????????????????????????????????????????????? | | ????????????????????????????????????????????????? | | ????????????????????????????????????????????????? | +----------------------------------------------------+ Best States ------------- Heat Dissipation 88 Coolant Potential 80 Energy Generation 37 Energy Capacity 715 Matter Stores 300 Matter Capacity 300 Sight Range 20 Robot Scan Range 20 Terrain Scan Range 20 Terrain Scan Density 10 Jamming Range 14 Armor Coverage 600 Resistance: KI 25 Resistance: TH 20 Resistance: EM 25 Core Shielding 20 Weapon Cycling 15 Phase Shifting 5 Evasion (%) 60 Targeting Accuracy 8 Melee Accuracy 5 Target Analysis 6 Recoil Reduction 4 Energy Filtering 30 Defensive Hacking 10 Relay Coupler Types 2 Relay Coupler Value 63 Item Schematics ----------------- Exp. Sensor Array | -8/Materials | Scanalyzed Combat Drone Bay | -6/Data Miner | Free Lgt. Regenerative Plating | -6/Data Miner | Free Cld. Nuclear Pulse Thruster | -6/Data Miner | Free Prc. Matter Filter | -6/Data Miner | Free Cld. Plasma Rifle | -6/Data Miner | Free Field Propulsion Array | -6/Data Miner | Free Imp. Armor Integrity Analyzer | -6/Data Miner | Free Adv. Datajack | -6/Data Miner | Free Rnf. Antimatter Reactor | -6/Data Miner | Free Robot Schematics ------------------ X-62 Marksman | -6/Data Miner | Free B-60 Warrior | -6/Data Miner | Free S-27 Virus | -6/Data Miner | Free A-15 Conveyor | -6/Data Miner | Free G-50 Soldier | -6/Data Miner | Free Fabricated ------------ Nothing Alien Tech Used ----------------- None Achievements -------------- None Challenges ------------ None Game ------ Seed BlastSignalCarapace Manual? 0 Play Time 02:21:38 Cumulative 90.5 hours Start 2024.05.09 @ 05:40:23 End 2024.05.10 @ 22:43:20 Sessions 3 Manual Loads 0 Difficulty Rogue Special Mode None Game No. 95 Rogue 86 Adventurer 9 Explorer 0 Win Type - Total 0 Types 0/0/0/0/0/0/0/0/0 Lore% 47 Gallery% 59 Achievement% 44 Wizard Run 0 Options --------- Layout 1 ASCII 0 Keyboard 0 Movement Numpad Keybinds 0 Fullscreen 1 Font 24/Smallcaps Map View 50x35 Zoom Use 0% Tactical HUD 0 Map Filters NONE Filters NONE Steam 1 RUN: d558add2-fe26-406a-909b-09859367b8d5